fUSD/lending_fUSD_20240628
["ID","MTS","AMOUNT","RATE_DAILY","PERIOD"]
[330593549,1719605434400,-3368.44872786,0.0001492,2]
[330593550,1719605434409,-150.0,0.00014921,2]
[330593551,1719605434419,-150.0,0.00014923,2]
[330593552,1719605434428,-150.0,0.0001493,2]
[330593553,1719605434437,-150.0,0.00014931,2]
[330593554,1719605434448,-150.0,0.00014933,2]
[330593555,1719605434458,-150.0,0.00014934,2]
[330593556,1719605434468,-150.0,0.00014938,2]
[330593557,1719605434479,-150.0,0.00014938,2]
[330593558,1719605434488,-150.0,0.00014939,2]
[330593559,1719605434498,-150.0,0.00014943,2]
[330593560,1719605434508,-150.0,0.00014948,2]
[330593561,1719605434518,-150.0,0.00014956,2]
[330593562,1719605434528,-150.0,0.00014956,2]
[330593563,1719605434537,-150.0,0.00014957,2]
[330593564,1719605434548,-150.0,0.00014965,2]
[330593565,1719605434558,-150.0,0.00014966,2]
[330593566,1719605434568,-150.0,0.00014966,2]
[330593567,1719605434578,-173.44846727,0.00014968,2]
[330593568,1719605434588,-174.32853661,0.00014968,2]
[330593569,1719605434598,-187.74629942,0.00014968,2]
[330593570,1719605434608,-150.0,0.00014968,2]
[330593571,1719605434619,-150.0,0.00014969,2]
[330593572,1719605434629,-150.0,0.00014969,2]
[330593573,1719605434638,-150.0,0.00014971,2]
[330593574,1719605434648,-150.0,0.00014973,2]
[330593575,1719605434657,-150.0,0.00014974,2]
[330593576,1719605434667,-150.0,0.00014978,2]
[330593577,1719605434676,-150.0,0.0001498,2]
[330593578,1719605434686,-150.0,0.00014981,2]
[330593579,1719605434697,-150.0,0.00014983,2]
[330593580,1719605434707,-150.0,0.00014984,2]
[330593581,1719605434717,-150.0,0.00014989,2]
[330593582,1719605434727,-150.0,0.00014996,2]
[330593583,1719605434737,-150.0,0.00014997,2]
[330593584,1719605434749,-2462.09083534,0.00014999,2]
[330593585,1719605434759,-1542.0,0.00015,2]
[330593586,1719605434768,-12913.6876504,0.00015,2]
[330593587,1719605434778,-1000.0,0.00015,2]
[330593588,1719605434788,-798.69866002,0.00015,2]
[330593589,1719605434798,-169.6676061,0.00015,2]
[330593590,1719605434807,-5000.0,0.00015,2]
[330593591,1719605434817,-622.59689453,0.00015,2]
[330593592,1719605434827,-872871.94443608,0.00015,2]
[330593593,1719605434840,-328.33,0.00015,2]
[330593594,1719605434853,-6041.75748108,0.00015,2]
[330593595,1719605434866,-25798.17810542,0.00015,2]
[330593596,1719605434875,-714.657097,0.00015068,2]
[330593597,1719605434888,-1196.43256254,0.00015184,2]
[330593598,1719605434905,-317.94169659,0.00015184,2]
[330593599,1719605434914,-210.0,0.000152,2]
[330593600,1719605434923,-19999.99,0.0001531,2]
[330593601,1719605434933,-9477.12,0.0001531,2]
[330593602,1719605434943,-29999.99,0.0001531,2]
[330593603,1719605434953,-6245.53,0.0001531,2]
[330593604,1719605434962,-677.0,0.000155,2]
[330593605,1719605434972,-2620.0,0.000155,2]
[330593606,1719605434983,-516.52,0.00015554,2]
[330593607,1719605434993,-3368.44872784,0.00015645,2]
[330593608,1719605435003,-1000.0,0.00015767,2]
[330593609,1719605435013,-714.657097,0.0001589,2]
[330593610,1719605435022,-151.0,0.00016116,2]
[330593611,1719605435031,-151.0,0.00016116,2]
[330593612,1719605435041,-151.0,0.00016116,2]
[330593613,1719605435051,-151.0,0.00016116,2]
[330593614,1719605435060,-151.0,0.00016116,2]
[330593615,1719605435070,-153.176636,0.00016116,2]
[330593616,1719605435079,-151.0,0.00016116,2]
[330593617,1719605435088,-151.0,0.00016116,2]
[330593618,1719605435098,-151.0,0.00016116,2]
[330593619,1719605435107,-151.0,0.00016116,2]
[330593620,1719605435116,-151.0,0.00016116,2]
[330593621,1719605435126,-151.0,0.00016116,2]
[330593622,1719605435135,-151.0,0.00016116,2]
[330593623,1719605435146,-151.0,0.00016116,2]
[330593624,1719605435155,-151.529417,0.00016116,2]
[330593625,1719605435165,-151.0,0.00016116,2]
[330593626,1719605435175,-151.0,0.00016116,2]
[330593627,1719605435185,-151.0,0.00016116,2]
[330593628,1719605435196,-151.0,0.00016116,2]
[330593629,1719605435205,-151.0,0.00016116,2]
[330593630,1719605435216,-215.280864,0.00016116,2]
[330593631,1719605435225,-151.0,0.00016116,2]
[330593632,1719605435235,-151.0,0.00016116,2]
[330593633,1719605435244,-151.0,0.00016116,2]
[330593634,1719605435254,-330.092209,0.00016116,2]
[330593635,1719605435265,-330.092209,0.00016116,2]
[330593636,1719605435274,-151.0,0.00016116,2]
[330593637,1719605435283,-1131.209846,0.00016116,2]
[330593638,1719605435293,-1131.209846,0.00016116,2]
[330593639,1719605435302,-808.80221,0.00016116,2]
[330593640,1719605435311,-151.0,0.00016116,2]
[330593641,1719605435320,-808.80221,0.00016116,2]
[330593642,1719605435330,-151.0,0.00016116,2]
[330593643,1719605435339,-249.379905,0.00016116,2]
[330593644,1719605435349,-151.0,0.00016116,2]
[330593645,1719605435358,-151.0,0.00016116,2]
[330593646,1719605435368,-151.0,0.00016116,2]
[330593647,1719605435377,-151.0,0.00016116,2]
[330593648,1719605435387,-151.0,0.00016116,2]
[330593649,1719605435396,-151.0,0.00016116,2]
[330593650,1719605435405,-151.0,0.00016116,2]
[330593651,1719605435414,-151.0,0.00016116,2]
[330593652,1719605435424,-151.0,0.00016116,2]
[330593653,1719605435433,-151.0,0.00016116,2]
[330593654,1719605435442,-177.05,0.00016292,2]
[330593655,1719605435452,-151.0,0.00016324,2]
[330593656,1719605435462,-151.0,0.00016324,2]
[330593657,1719605435472,-151.0,0.00016324,2]
[330593658,1719605435482,-10000.0,0.00016324,2]
[330593659,1719605435491,-3368.44872784,0.00016369,2]
[330593660,1719605435503,-1196.43256254,0.00016469,2]
[330593661,1719605435513,-317.94169659,0.00016469,2]
[330593662,1719605435523,-1757.44036792,0.000165,2]
[330593663,1719605435533,-293.0,0.00016672,2]
[330593664,1719605435542,-714.657097,0.00016712,2]
[330593665,1719605435552,-1205.71307746,0.00016897,2]
[330593666,1719605435562,-1273.0,0.00016918,2]
[330593667,1719605435571,-1656.0,0.00016918,2]
[330593668,1719605435581,-812.0,0.00016918,2]
[330593669,1719605435591,-460.693,0.00016918,2]
[330593670,1719605435600,-678.088,0.00016918,2]
[330593671,1719605435609,-166.0,0.00016918,2]
[330593672,1719605435619,-443.0,0.00016918,2]
[330593673,1719605435629,-2414.0,0.00016918,2]
[330593674,1719605435638,-1304.0,0.00016918,2]
[330593675,1719605435648,-1986.0,0.00016918,2]
[330593676,1719605435658,-3203.0,0.00016918,2]
[330593677,1719605435667,-548.0,0.00016918,2]
[330593678,1719605435677,-4143.65,0.00016918,2]
[330593679,1719605435687,-5172.0,0.00016918,2]
[330593680,1719605435696,-1662.0,0.00016918,2]
[330593681,1719605435705,-288.0,0.00016918,2]
[330593682,1719605435715,-1198.0,0.00016918,2]
[330593683,1719605435724,-2379.133,0.00016918,2]
[330593684,1719605435736,-174.32853659,0.00016949,2]
[330593685,1719605435745,-676.20068843,0.00016969,2]
[330593686,1719605435754,-2000.0,0.00016986,3]
[330593687,1719605435763,-2490.29099852,0.00017,2]
[330593688,1719605435773,-3368.44872784,0.00017094,2]
[330593689,1719605435782,-1000.0,0.00017344,2]
[330593690,1719605435792,-714.657097,0.00017534,2]
[330593691,1719605435801,-306.867,0.00017588,2]
[330593692,1719605435812,-1830.0,0.00017588,2]
[330593693,1719605435821,-226.99073299,0.00017599,2]
[330593694,1719605435830,-788.1795791,0.00017599,2]
[330593695,1719605435840,-525.88970109,0.00017703,2]
[330593696,1719605435850,-1196.43256254,0.00017753,2]
[330593697,1719605435860,-317.94169659,0.00017753,2]
[330593698,1719605435870,-160000.0,0.00017814,2]
[330593699,1719605435880,-151.0,0.00017814,2]
[330593700,1719605435891,-151.0,0.00017814,2]
[330593701,1719605435901,-151.0,0.00017814,2]
[330593702,1719605435910,-516.52,0.00017818,2]
[330593703,1719605435920,-3368.44872784,0.00017818,2]
[330593704,1719605435930,-1205.71307746,0.00017896,2]
[330593705,1719605435940,-151.0,0.00017896,2]
[330593706,1719605435949,-151.0,0.00017896,2]
[330593707,1719605435959,-151.0,0.00017896,2]
[330593708,1719605435970,-151.0,0.00017896,2]
[330593709,1719605435981,-151.0,0.00017896,2]
[330593710,1719605435990,-151.0,0.00017896,2]
[330593711,1719605436000,-151.0,0.00017896,2]
[330593712,1719605436010,-151.0,0.00017896,2]
[330593713,1719605436019,-151.0,0.00017896,2]
[330593714,1719605436028,-151.0,0.00017896,2]
[330593715,1719605436037,-151.0,0.00017896,2]
[330593716,1719605436046,-151.0,0.00017896,2]
[330593717,1719605436055,-151.0,0.00017896,2]
[330593718,1719605436065,-151.0,0.00017896,2]
[330593719,1719605436075,-151.0,0.00017896,2]
[330593720,1719605436084,-151.0,0.00017896,2]
[330593721,1719605436093,-151.0,0.00017896,2]
[330593722,1719605436103,-151.0,0.00017896,2]
[330593723,1719605436112,-151.0,0.00017896,2]
[330593724,1719605436121,-151.0,0.00017896,2]
[330593725,1719605436130,-151.0,0.00017896,2]
[330593726,1719605436139,-151.0,0.00017896,2]
[330593727,1719605436148,-151.0,0.00017896,2]
[330593728,1719605436158,-233.367906,0.00017896,2]
[330593729,1719605436167,-156.569985,0.00017896,2]
[330593730,1719605436176,-151.0,0.00017896,2]
[330593731,1719605436185,-151.0,0.00017896,2]
[330593732,1719605436194,-151.0,0.00017896,2]
[330593733,1719605436203,-151.0,0.00017896,2]
[330593734,1719605436212,-151.0,0.00017896,2]
[330593735,1719605436221,-151.0,0.00017896,2]
[330593736,1719605436230,-178.596364,0.00017896,2]
[330593737,1719605436239,-151.0,0.00017896,2]
[330593738,1719605436249,-151.0,0.00017896,2]
[330593739,1719605436258,-151.0,0.00017896,2]
[330593740,1719605436267,-151.0,0.00017896,2]
[330593741,1719605436276,-151.0,0.00017896,2]
[330593742,1719605436286,-232.73251,0.00017896,2]
[330593743,1719605436295,-151.225536,0.00017896,2]
[330593744,1719605436304,-151.0,0.00017896,2]
[330593745,1719605436313,-199.90502,0.00017896,2]
[330593746,1719605436323,-151.0,0.00017896,2]
[330593747,1719605436332,-151.0,0.00017896,2]
[330593748,1719605436341,-151.0,0.00017896,2]
[330593749,1719605436350,-151.0,0.00017896,2]
[330593750,1719605436360,-151.0,0.00017896,2]
[330593751,1719605436369,-151.0,0.00017896,2]
[330593752,1719605436378,-151.0,0.00017896,2]
[330593753,1719605436387,-151.0,0.00017896,2]
[330593754,1719605436397,-151.0,0.00017896,2]
[330593755,1719605436406,-151.0,0.00017896,2]
[330593756,1719605436415,-151.0,0.00017896,2]
[330593757,1719605436425,-151.0,0.00017896,2]
[330593758,1719605436434,-486.339603,0.00017896,2]
[330593759,1719605436443,-151.0,0.00017896,2]
[330593760,1719605436452,-151.0,0.00017896,2]
[330593761,1719605436462,-151.0,0.00017896,2]
[330593762,1719605436471,-244.49896861,0.00017896,2]
[330593774,1719605440000,-163.72484857,0.00012302,2]
[330593775,1719605440010,-437.69795218,0.00013516,2]
[330593776,1719605440019,-378.18292746,0.00013574,2]
[330593777,1719605440028,-173.43486,0.00016324,2]
[330593778,1719605440038,-676.67327125,0.00016324,2]
[330593779,1719605440048,-1069.0,0.00016918,2]
[330593780,1719605440057,-241.84063439,0.00017896,2]
[330593781,1719605440068,-151.0,0.00017896,2]
[330593783,1719605440077,-199.117444,0.00017896,2]
[330593784,1719605440086,-537.804775,0.00017896,2]
[330593786,1719605440096,-537.804775,0.00017896,2]
[330593787,1719605440105,-199.117444,0.00017896,2]
[330593788,1719605440115,-151.0,0.00017896,2]
[330593789,1719605440124,-151.0,0.00017896,2]
[330593790,1719605440134,-151.0,0.00017896,2]
[330593792,1719605440143,-151.0,0.00017896,2]
[330593794,1719605440153,-151.0,0.00017896,2]
[330593796,1719605440162,-151.0,0.00017896,2]
[330593798,1719605440172,-151.0,0.00017896,2]
[330593800,1719605440181,-151.0,0.00017896,2]
[330593802,1719605440190,-151.0,0.00017896,2]
[330593804,1719605440200,-151.0,0.00017896,2]
[330593806,1719605440209,-330.092209,0.00017896,2]
[330593808,1719605440218,-330.092209,0.00017896,2]
[330593810,1719605440227,-151.0,0.00017896,2]
[330593812,1719605440237,-1131.209846,0.00017896,2]
[330593814,1719605440247,-1131.209846,0.00017896,2]
[330593816,1719605440256,-808.80221,0.00017896,2]
[330593818,1719605440265,-152.13431,0.00017896,2]
[330593820,1719605440275,-808.80221,0.00017896,2]
[330593822,1719605440284,-151.0,0.00017896,2]
[330593824,1719605440294,-151.0,0.00017896,2]
[330593826,1719605440303,-151.0,0.00017896,2]
[330593828,1719605440312,-151.0,0.00017896,2]
[330593830,1719605440322,-151.0,0.00017896,2]
[330593832,1719605440330,-151.0,0.00017896,2]
[330593834,1719605440340,-151.0,0.00017896,2]
[330593836,1719605440349,-151.0,0.00017896,2]
[330593837,1719605440358,-151.0,0.00017896,2]
[330593839,1719605440367,-151.0,0.00017896,2]
[330593841,1719605440375,-150.0,0.00017901,2]
[330593843,1719605440385,-17371.25822815,0.00018,3]
[330593847,1719605440409,-456.60486029,0.00018,3]
[330593849,1719605440421,-1000.0,0.00018,3]
[330593853,1719605440450,-3021.85448745,0.00018,3]
[330593855,1719605440462,-589.98973099,0.00018,3]
[330593857,1719605440473,-603.15,0.00018,3]
[330593859,1719605440484,-678.18,0.00018,3]
[330593862,1719605440507,-1014.4073902,0.00018,3]
[330593864,1719605440519,-3332.97664968,0.00018,3]
[330593867,1719605440555,-351.92,0.00018,3]
[330593928,1719605442380,-548.94403522,0.00014921,2]
[330593929,1719605442408,-968.42866282,0.00014921,2]
[330593961,1719605443341,-17.62730196,0.00014921,2]
[330593963,1719605443350,-2115.58512442,0.00018,3]
[330593966,1719605443362,-17896.61684889,0.00018,3]
[330593970,1719605443398,-696.65702926,0.00018,3]
[330593975,1719605443458,-565.99524606,0.00018,3]
[330593976,1719605443601,-540.45949,0.00018,3]
[330593977,1719605443649,-604.320228,0.00018,3]
[330593978,1719605443662,-386.54715995,0.00018,3]
[330593979,1719605443755,-292.10250999,0.00018,3]
[330593980,1719605443767,-30175.78328483,0.00018,3]
[330594011,1719605446360,-250.0,0.00017646,2]
[330594012,1719605446370,-31.44426751,0.00018,3]
[330594013,1719605446415,-601.71917854,0.00018,3]
[330594014,1719605446427,-5979.40394953,0.00018,3]
[330594015,1719605446540,-655.0,0.00018,3]
[330594016,1719605446552,-795.64528973,0.00018,3]
[330594017,1719605446780,-151.0,0.00016324,2]
[330594019,1719605446790,-1059.26308,0.00018,3]
[330594260,1719605784120,171.87,0.00025194,120]
[330594289,1719606631688,-1209.45727771,0.000138,2]
[330594290,1719606631699,-633.6425639,0.000138,2]
[330594291,1719606631711,-1919.00395839,0.000138,2]
[330594292,1719606631720,-194.688,0.000138,2]
[330594293,1719606631730,-3555.98071795,0.000138,2]
[330594294,1719606631773,-1496.323505,0.000138,2]
[330594295,1719606631788,-7646.98285621,0.000138,2]
[330594323,1719606637677,-1443.26152,0.000138,2]
[330594324,1719606637689,-259.6010198,0.000138,2]
[330594325,1719606637714,-2819.93884698,0.000138,2]
[330594326,1719606637723,-2050.0582361,0.00013849,2]
[330594327,1719606637733,-300.0,0.00013898,2]
[330594328,1719606637742,-150.0,0.00013899,2]
[330594329,1719606637752,-1237.7892,0.000139,2]
[330594330,1719606637762,-23981.66460046,0.000139,2]
[330594335,1719606637853,-375.79969573,0.000139,2]
[330594336,1719606637895,-4186.27582778,0.000139,2]
[330594337,1719606637907,-404.64145571,0.000139,2]
[330594338,1719606637919,-616.38,0.000139,2]
[330594339,1719606639778,-15291.25,0.000139,2]
[330594341,1719606640281,-571.61863789,0.000139,2]
[330594342,1719606640293,-1814.51489,0.000139,2]
[330594368,1719606645667,-9066.17892673,0.000139,2]
[330594387,1719606944048,22038.02887842,0.000112,2]
[330594419,1719607268661,25262.993392,0.00011199,2]
[330594420,1719607276107,1252.01183286,0.00011199,2]
[330594422,1719607373796,1133.60989333,0.00011199,2]
[330594424,1719607404166,19608.51382202,0.00011199,2]
[330594428,1719607549480,5949.56039575,0.00011199,2]
[330594430,1719607584378,5000.0,0.00026,120]
[330594431,1719607596221,529.65728417,0.00011199,2]
[330594432,1719607598223,541.77822868,0.00011199,2]
[330594433,1719607604734,155.0,0.00011199,2]
[330594458,1719607643873,3391.35870222,0.00011199,2]
[330594459,1719607749734,16874.49967858,0.00011199,2]
[330594460,1719607774251,1286.08864935,0.00011199,2]
[330594461,1719607785805,2552.63848332,0.00011199,2]
[330594481,1719607831854,-577.38,0.00011568,2]
[330594482,1719607831864,-165.60822621,0.00012202,2]
[330594483,1719607831873,-299.1423514,0.00012273,2]
[330594484,1719607831883,-32.53621372,0.00012273,2]
[330594502,1719607837710,258.76245931,0.00011199,2]
[330594514,1719607837828,-259.79166223,0.00012273,2]
[330594516,1719607837840,-93.11266351,0.00012273,2]
[330594517,1719607837850,-1000.0,0.00012302,2]
[330594518,1719607837859,-788.1795791,0.00012302,2]
[330594520,1719607837868,-788.1795791,0.00012302,2]
[330594521,1719607837878,-242.25955593,0.00012302,2]
[330594522,1719607837888,-173.46032747,0.00012302,2]
[330594523,1719607837898,-235.38273328,0.00012314,2]
[330594524,1719607837908,-442.71754,0.00012986,2]
[330594525,1719607837917,-150.0,0.00013032,2]
[330594526,1719607837927,-1000.0,0.00013032,2]
[330594527,1719607837936,-250.0,0.00013052,2]
[330594528,1719607837946,-150.0,0.00013127,2]
[330594529,1719607837956,-300.0,0.00013127,2]
[330594530,1719607837966,-155.36558088,0.00013128,2]
[330594531,1719607837978,-171.87,0.00013288,2]
[330594532,1719607837988,-415.07899166,0.00013437,2]
[330594533,1719607837999,-163.62322815,0.00013472,2]
[330594534,1719607838009,-155.0,0.00013472,2]
[330594535,1719607838019,-430.54118397,0.00013472,2]
[330594536,1719607838028,-321.34986589,0.00013543,2]
[330594537,1719607838038,-887.68380317,0.00013574,2]
[330594538,1719607838048,-244.7,0.00013699,2]
[330594539,1719607838058,-1000.0,0.00013758,2]
[330594540,1719607838067,-1696.49536789,0.00013759,2]
[330594608,1719607838732,-5011.6,0.00013759,2]
[330594621,1719607839209,-582.84423061,0.00013759,2]
[330594622,1719607840437,-155.0,0.00012314,2]
[330594623,1719607840446,-212.58734451,0.00013516,2]
[330594624,1719607840458,-841.621393,0.00013516,2]
[330594625,1719607840467,-3328.8204015,0.00013759,2]
[330594626,1719607840477,-1126.73400742,0.00013759,2]
[330594627,1719607840486,-270.48926,0.0001376,2]
[330594628,1719607840495,-1893.41772079,0.0001378,2]
[330594629,1719607840507,-435.69678305,0.0001378,2]
[330594630,1719607840516,-5222.51,0.0001379,2]
[330594631,1719607840527,-123.01578008,0.0001379,2]
[330594632,1719607840540,-1033.78421992,0.0001379,2]
[330594633,1719607840550,-394.75471922,0.000138,2]
[330594634,1719607840604,-733.43999999,0.000138,2]
[330594635,1719607840616,-1385.68,0.000138,2]
[330594636,1719607840628,-5963.71447418,0.000138,2]
[330594637,1719607840682,-416.024,0.000138,2]
[330594638,1719607840695,-2969.9,0.000138,2]
[330594639,1719607840733,-689.88024311,0.000138,2]
[330594640,1719607840747,-9607.6345635,0.000138,2]
[330594641,1719607840757,-9016.1602,0.000138,2]
[330594642,1719607840767,-931.8052,0.000138,2]
[330594643,1719607840776,-577.38,0.00013832,2]
[330594644,1719607840786,-528.0988798,0.00013899,2]
[330594645,1719607840795,-647.26467047,0.00013899,2]
[330594646,1719607840805,-986.9652,0.000139,2]
[330594647,1719607840814,-360.6364,0.000139,2]
[330594648,1719607840824,-785.8747,0.000139,2]
[330594649,1719607840833,-155.0,0.000139,2]
[330594650,1719607840843,-293.4486,0.000139,2]
[330594651,1719607840853,-200.46046515,0.000139,2]
[330594652,1719607840862,-174.32853659,0.000139,2]
[330594653,1719607840871,-195.70679895,0.000139,2]
[330594654,1719607840880,-3245.5692,0.000139,2]
[330594655,1719607840889,-849.66567919,0.000139,2]
[330594656,1719607840899,-27409.28977559,0.000139,2]
[330594657,1719607840908,-219.6763,0.000139,2]
[330594658,1719607840916,-317.86231608,0.000139,2]
[330594659,1719607840925,-192.45965301,0.000139,2]
[330594660,1719607840935,-1753.49365866,0.000139,2]
[330594661,1719607840945,-224.01729681,0.0001399,2]
[330594662,1719607840954,-270.23063175,0.00013999,2]
[330594663,1719607840963,-155.19601407,0.00013999,2]
[330594664,1719607840972,-1022193.10885679,0.00014,2]
[330594665,1719607840982,-1000.0,0.00014,2]
[330594666,1719607840991,-241.07944647,0.00014099,2]
[330594667,1719607841000,-2917.21025707,0.00014199,2]
[330594668,1719607841009,-16022.95,0.00014299,2]
[330594669,1719607841019,-157.69153466,0.00014393,2]
[330594670,1719607841028,-420.0,0.00014394,2]
[330594671,1719607841037,-150.0,0.00014408,2]
[330594672,1719607841047,-173.22,0.00014453,2]
[330594673,1719607841056,-173.84,0.00014481,2]
[330594674,1719607841065,-532.56139112,0.00014499,2]
[330594675,1719607841075,-1000.0,0.00014661,2]
[330594676,1719607841084,-151.58,0.00014783,2]
[330594677,1719607841093,-174.35486347,0.00014849,2]
[330594678,1719607841103,-27409.28977556,0.00014899,2]
[330594679,1719607841112,-1753.49365859,0.00014899,2]
[330594680,1719607841121,-2917.21025699,0.00014989,2]
[330594681,1719607841130,-69457.31902091,0.00015,2]
[330594682,1719607841141,-7494.64012127,0.00015,2]
[330594683,1719607841150,-1000.0,0.00015,2]
[330594684,1719607841159,-5000.0,0.00015,2]
[330594685,1719607841168,-849.66567915,0.00015184,2]
[330594686,1719607841178,-2708.0,0.000155,2]
[330594687,1719607841187,-1445.0,0.000155,2]
[330594688,1719607841196,-21472.1748,0.00015519,2]
[330594689,1719607841205,-317.86231604,0.00015698,2]
[330594690,1719607841214,-500.0,0.0001572,2]
[330594691,1719607841224,-2917.21025699,0.00015779,2]
[330594692,1719607841233,-587.0,0.00015783,2]
[330594693,1719607841242,-673.25462007,0.00015878,2]
[330594694,1719607841251,-27409.28977556,0.00015898,2]
[330594695,1719607841261,-1753.49365859,0.00015898,2]
[330594696,1719607841270,-195.70679894,0.000159,2]
[330594697,1719607841279,-1000.0,0.00016,2]
[330594698,1719607841289,-577.38,0.00016096,2]
[330594699,1719607841298,-200.46046511,0.00016148,2]
[330594700,1719607841307,-177.05,0.00016155,2]
[330594701,1719607841316,-622.59689453,0.00016172,2]
[330594702,1719607841325,-150.0,0.000162,2]
[330594703,1719607841335,-270.48927,0.0001626,2]
[330594704,1719607841344,-1000.0,0.0001629,2]
[330594705,1719607841353,-501.637844,0.00016438,2]
[330594706,1719607841363,-849.66567915,0.00016469,2]
[330594707,1719607841372,-150.0,0.000165,2]
[330594708,1719607841381,-10000.0,0.00016545,2]
[330594709,1719607841391,-2917.21025699,0.00016569,2]
[330594710,1719607841400,-150.0,0.000168,2]
[330594711,1719607841409,-27409.28977556,0.00016897,2]
[330594712,1719607841419,-1753.49365859,0.00016897,2]
[330594713,1719607841428,-1024.05,0.00016986,3]
[330594714,1719607841437,-1000.0,0.00017,2]
[330594715,1719607841447,-449.0,0.00017,2]
[330594716,1719607841456,-1006.0,0.00017,2]
[330594717,1719607841465,-1000.0,0.00017,2]
[330594718,1719607841475,-150.0,0.000171,2]
[330594719,1719607841484,-1000.0,0.000171,2]
[330594720,1719607841494,-1830.0,0.00017178,2]
[330594721,1719607841503,-1656.0,0.00017178,2]
[330594722,1719607841513,-1273.0,0.00017178,2]
[330594723,1719607841522,-166.0,0.00017178,2]
[330594724,1719607841533,-812.0,0.00017178,2]
[330594725,1719607841543,-443.0,0.00017178,2]
[330594726,1719607841553,-618.0,0.00017178,2]
[330594727,1719607841564,-448.0,0.00017178,2]
[330594728,1719607841574,-2414.0,0.00017178,2]
[330594729,1719607841583,-1304.0,0.00017178,2]
[330594730,1719607841593,-1986.0,0.00017178,2]
[330594731,1719607841602,-3203.0,0.00017178,2]
[330594732,1719607841611,-548.0,0.00017178,2]
[330594733,1719607841620,-1196.0,0.00017178,2]
[330594734,1719607841629,-1032.392,0.00017178,2]
[330594735,1719607841638,-150.0,0.00017178,2]
[330594736,1719607841651,-814.69,0.00017178,2]
[330594737,1719607841661,-24891.283,0.00017178,2]
[330594738,1719607841671,-1069.0,0.00017178,2]
[330594739,1719607841680,-303.37422425,0.00017259,2]
[330594740,1719607841690,-501.637844,0.0001726,2]
[330594741,1719607841699,-1000.0,0.000173,2]
[330594742,1719607841708,-823.0,0.00017307,2]
[330594743,1719607841718,-2917.21025699,0.00017359,2]
[330594744,1719607841728,-150.0,0.000174,2]
[330594745,1719607841737,-317.86231604,0.00017496,2]
[330594746,1719607841747,-155.0,0.00017533,2]
[330594747,1719607841756,-292.27590029,0.00017599,2]
[330594748,1719607841765,-418.71,0.00017686,2]
[330594749,1719607841777,-418.71,0.00017686,2]
[330594750,1719607841786,-590.98,0.00017686,2]
[330594751,1719607841795,-414.78,0.00017686,2]
[330594752,1719607841804,-150.0,0.000177,2]
[330594753,1719607841815,-526.05327897,0.00017703,2]
[330594754,1719607841823,-150.0,0.0001772,2]
[330594755,1719607841832,-150.0,0.00017721,2]
[330594756,1719607841841,-150.0,0.00017722,2]
[330594757,1719607841851,-150.0,0.00017724,2]
[330594758,1719607841860,-150.0,0.00017725,2]
[330594759,1719607841871,-150.0,0.00017728,2]
[330594760,1719607841880,-150.0,0.00017728,2]
[330594761,1719607841888,-150.0,0.00017729,2]
[330594762,1719607841898,-150.0,0.0001773,2]
[330594763,1719607841908,-150.0,0.00017735,2]
[330594764,1719607841917,-150.0,0.00017736,2]
[330594765,1719607841926,-150.0,0.00017742,2]
[330594766,1719607841935,-150.0,0.00017751,2]